bitfinex/quotes_ETHUSD_20240819
["timestamp","ask_amount","ask_price","bid_price","bid_amount"]
[1724031493258,0.1254801,2636.0,2635.9,6.79377]
[1724031493464,0.1254801,2636.0,2635.9,10.58754]
[1724031493994,0.1254801,2636.0,2635.9,7.6299623]
[1724031494260,0.1254801,2636.0,2635.9,11.4237323]
[1724031494398,0.1254801,2636.0,2635.9,10.58754]
[1724031494571,0.1254801,2636.0,2635.9,6.79377]
[1724031495614,0.1254801,2636.0,2635.9,3.0]
[1724031497267,2.4801801,2636.0,2635.5,3.79432]
[1724031497608,6.2738901,2636.0,2635.6,3.0]
[1724031497913,0.62736801,2635.9,2635.5,6.79426]
[1724031498115,2.4801801,2636.0,2635.7,3.79397]
[1724031498315,2.4801801,2636.0,2635.7,3.79396]
[1724031498524,2.4801801,2636.0,2635.9,3.79377]
[1724031498703,2.4801801,2636.0,2635.7,3.79395]
[1724031499094,2.4801801,2636.0,2635.7,7.58791]
[1724031499299,2.4801801,2636.0,2635.7,3.79395]
[1724031499529,2.4801801,2636.0,2635.8,3.79381]
[1724031502105,2.4801801,2636.0,2635.7,3.79395]
[1724031502679,2.72819811,2636.0,2635.5,3.0]
[1724031502882,2.72819811,2636.0,2635.1,0.83601484]
[1724031502883,2.2663,2635.8,2635.1,3.79484]
[1724031503094,2.2663,2635.8,2634.9,3.79514]
[1724031503095,3.79429,2635.6,2634.9,3.79507]
[1724031503304,3.79435,2635.5,2634.9,3.79507]
[1724031503536,2.2977,2635.4,2634.9,3.79507]
[1724031504024,2.2977,2635.4,2635.0,3.79506]
[1724031505491,2.2977,2635.4,2634.9,3.79507]
[1724031505697,2.2977,2635.4,2635.0,3.0]
[1724031506311,7.08085,2635.4,2635.0,3.0]
[1724031506593,7.08085,2635.4,2634.9,3.0]
[1724031507394,10.87543,2635.4,2634.9,3.0]
[1724031507595,7.08085,2635.4,2634.9,3.0]
[1724031507794,4.502815,2635.3,2634.8,3.0]
[1724031508195,2.2925,2635.2,2634.3,4.58402561]
[1724031508422,3.79514,2635.0,2634.3,3.79596]
[1724031508652,3.79524,2634.9,2634.3,3.79596]
[1724031508860,3.79524,2634.9,2634.3,7.59194]
[1724031509159,3.79524,2634.9,2634.3,3.79596]
[1724031509436,3.79536,2634.8,2634.1,3.79628]
[1724031509611,3.79565,2634.6,2634.1,3.79628]
[1724031510892,6.22716,2634.8,2634.1,3.79628]
[1724031511104,6.22716,2634.8,2634.2,6.79621]
[1724031511249,2.4318,2634.8,2634.5,3.7957]
[1724031511445,2.2537,2635.1,2634.5,3.7957]
[1724031511647,3.01606847,2635.1,2634.6,3.79562]
[1724031511901,2.2537,2635.1,2634.6,3.79562]
[1724031512081,6.04825,2635.4,2634.7,3.0]
[1724031512263,6.04825,2635.4,2634.8,3.79526]
[1724031512456,6.653075,2635.4,2634.8,3.79526]
[1724031512657,3.79463,2635.3,2634.7,6.79547]
[1724031512849,6.653075,2635.4,2634.7,6.79547]
[1724031513050,0.6653075,2635.3,2634.7,3.0]
[1724031513247,6.28911,2634.9,2634.5,3.0]
[1724031513551,2.4938,2634.9,2634.5,3.79578]
[1724031513778,2.4938,2634.9,2634.6,3.0]
[1724031514472,3.122686,2634.9,2634.4,3.0]
[1724031514689,3.79537,2634.8,2634.0,0.7501]
[1724031515005,3.79537,2634.8,2634.1,3.79635]
[1724031515208,3.79537,2634.8,2634.3,3.79604]
[1724031515795,2.4938,2634.9,2634.4,3.79592]
[1724031516297,2.4938,2634.9,2634.5,3.79575]
[1724031517603,2.4938,2634.9,2634.3,3.79595]
[1724031517808,3.12608247,2634.9,2634.3,3.79595]
[1724031518093,3.79545,2634.8,2634.2,3.79621]
[1724031518392,3.79545,2634.8,2634.3,3.0]
[1724031520678,3.79165,2634.8,2634.3,3.0]
[1724031521489,0.69177325,2634.7,2634.3,3.0]
[1724031521862,3.79564,2634.6,2634.0,4.54652]
[1724031522063,3.79608,2634.3,2634.0,0.7501]
[1724031522560,2.2639,2634.4,2634.0,0.7501]
[1724031522765,6.05983,2634.4,2634.0,0.7501]
[1724031522967,3.7961,2634.3,2634.0,0.7501]
[1724031525437,3.629062,2634.4,2634.0,0.7501]
[1724031525647,2.2639,2634.4,2634.0,0.7501]
[1724031525940,3.79568,2634.6,2634.0,4.54647]
[1724031526314,5.39052816,2634.6,2634.0,4.54647]
[1724031526828,3.79578,2634.5,2634.0,0.7501]
[1724031527606,3.79578,2634.5,2634.0,3.7501]
[1724031528689,3.79603,2634.4,2634.0,3.7501]
[1724031528991,4.71469582,2634.4,2634.0,0.7501]
[1724031529175,3.79603,2634.4,2634.0,0.7501]
[1724031529361,1.59484816,2634.6,2634.0,0.7501]
[1724031529545,3.79579,2634.5,2634.0,0.7501]
[1724031529742,4.31263848,2634.5,2634.0,0.7501]
[1724031531194,3.79597,2634.4,2634.0,0.7501]
[1724031533262,3.79607,2634.3,2634.0,0.7501]
[1724031533853,6.17182,2634.2,2634.0,0.7501]
[1724031535251,7.59272,2634.1,2634.0,0.7501]
[1724031547477,11.38908,2634.1,2634.0,0.7501]
[1724031547682,13.72418,2634.1,2634.0,0.7501]
[1724031547903,3.79759,2633.3,2632.8,6.37799267]
[1724031548111,3.79759,2633.3,2632.9,0.83690649]
[1724031548112,3.79775,2633.2,2632.9,0.83690649]
[1724031548275,3.79775,2633.2,2632.7,0.83698577]
[1724031548611,3.79775,2633.2,2632.8,0.83698577]
[1724031548808,3.79782,2633.1,2632.5,6.07148]
[1724031549005,3.79782,2633.1,2632.6,2.1581281]
[1724031549213,3.79782,2633.1,2632.7,0.83695705]
[1724031549387,3.79782,2633.1,2632.6,0.83695705]
[1724031549713,3.79782,2633.1,2632.7,0.83695705]
[1724031550074,3.79782,2633.1,2632.7,3.83695705]
[1724031550508,3.79823,2632.8,2632.7,3.83695705]
[1724031550721,3.79838,2632.7,2632.4,3.83695705]
[1724031550920,3.79838,2632.7,2632.3,0.83695705]
[1724031551543,3.79838,2632.7,2632.1,3.79913]
[1724031551735,3.79838,2632.7,2632.1,7.59829]
[1724031551910,3.79838,2632.7,2632.2,0.83712157]
[1724031552408,3.79838,2632.7,2632.2,6.7991]
[1724031553320,3.79838,2632.7,2632.2,3.0]
[1724031554181,3.79838,2632.7,2632.2,6.79907]
[1724031554386,3.79817,2632.9,2632.2,6.79907]
[1724031554702,3.79817,2632.9,2632.2,3.0]
[1724031554887,3.79846,2632.7,2632.2,3.0]
[1724031555087,2.4756,2633.0,2632.2,6.79902]
[1724031555088,3.79825,2632.8,2632.2,6.79902]
[1724031555402,3.79825,2632.8,2632.3,3.79895]
[1724031555597,3.79789,2633.1,2632.4,0.07597368]
[1724031555813,3.79759,2633.3,2632.5,3.79858]
[1724031556031,3.79781,2633.1,2632.6,3.0]
[1724031556342,2.3795,2633.6,2632.6,3.0]
[1724031556561,3.79782,2633.1,2632.5,6.79854]
[1724031557123,3.79752,2633.3,2632.5,6.87450383]
[1724031557312,3.79752,2633.3,2632.7,3.79837]
[1724031558225,6.21085997,2633.6,2632.5,6.79854]
[1724031558426,3.79752,2633.3,2632.5,6.79854]
[1724031558730,3.79752,2633.3,2632.7,3.79837]
[1724031559060,3.79752,2633.3,2632.7,7.59665]
[1724031559393,3.79752,2633.3,2632.7,3.79828]
[1724031559744,3.79752,2633.3,2632.7,7.59658]
[1724031560228,3.79777,2633.2,2632.6,3.79848]
[1724031561026,10.04399,2633.1,2632.5,6.79853]
[1724031561213,3.79818,2632.9,2632.5,3.0]
[1724031561421,3.79818,2632.9,2632.4,3.7988]
[1724031561735,3.79818,2632.9,2632.5,3.0]
[1724031561906,10.04411,2633.1,2632.5,3.0]
[1724031562228,2.4483,2633.1,2632.6,3.79843]
[1724031562523,2.4483,2633.1,2632.6,3.79841]
[1724031562903,2.4483,2633.1,2632.5,3.0]
[1724031562904,3.79797,2633.0,2632.5,3.0]
[1724031563426,6.24611,2633.1,2632.5,6.79858]
[1724031563623,6.24611,2633.1,2632.6,3.79852]
[1724031564420,6.24611,2633.1,2632.6,3.79845]
[1724031564751,3.79781,2633.1,2632.6,3.79845]
[1724031564931,7.59572,2633.1,2632.6,3.79845]
[1724031565091,3.79781,2633.1,2632.6,3.79845]
[1724031565494,0.3806,2636.5,2633.5,2.1682]
[1724031565736,2.2564,2636.8,2634.9,17.44283]
[1724031565737,4.37e-06,2635.0,2634.9,17.44283]
[1724031565936,4.37e-06,2635.0,2634.9,16.93105082]
[1724031566102,4.37e-06,2635.0,2634.9,24.85590395]
[1724031566296,6.08394636,2636.8,2635.6,3.79412]
[1724031566543,3.79265,2636.7,2635.6,3.79412]
[1724031566749,3.889,2636.5,2635.6,3.79412]
[1724031566899,3.889,2636.5,2635.7,3.79398]
[1724031567255,3.79281,2636.6,2635.8,3.79387]
[1724031568024,3.79281,2636.6,2635.9,3.79377]
[1724031568647,3.79281,2636.6,2635.8,3.79387]
[1724031569046,3.79281,2636.6,2635.9,3.79377]
[1724031569621,1.520267,2638.4,2637.8,37.44]
[1724031569817,1e-07,2638.6,2638.5,11.37009]
[1724031570005,1e-07,2638.6,2638.5,15.25909]
[1724031570277,1e-07,2638.6,2638.5,11.46906]
[1724031570953,1e-07,2638.6,2638.5,14.46906]
[1724031571653,0.1499,2639.5,2639.4,3.78873]
[1724031571870,0.1499,2639.5,2639.0,3.78926]
[1724031572185,0.1499,2639.5,2637.6,0.78803561]
[1724031572186,3.78914,2639.2,2638.2,3.79045]
[1724031572307,0.378914,2639.1,2638.0,3.79071]
[1724031572500,3.78947,2638.9,2637.6,3.79131]
[1724031572703,2.3428,2638.5,2637.5,3.79143]
[1724031572902,0.23428,2638.4,2637.6,3.79132]
[1724031573160,0.23428,2638.4,2637.5,3.79146]
[1724031573336,0.23428,2638.4,2638.0,3.79069]
[1724031573661,3.78956,2638.9,2637.9,3.79088]
[1724031573960,0.995847,2638.8,2637.9,3.79088]
[1724031574118,3.78987,2638.7,2637.7,3.7911]
[1724031574541,3.78987,2638.7,2637.8,3.0]
[1724031575006,3.7901,2638.5,2637.6,3.0]
[1724031575208,3.79047,2638.2,2637.3,3.79171]
[1724031575844,3.79047,2638.2,2636.9,0.47083406]
[1724031575845,3.7908,2638.0,2637.2,3.79188]
[1724031576006,2.3695,2638.1,2636.9,4.26303406]
[1724031576007,3.79089,2637.9,2636.9,4.26303406]
[1724031576207,0.379089,2637.8,2636.9,4.26303406]
[1724031576438,0.379089,2637.8,2637.2,3.79186]
[1724031576645,3.79077,2638.0,2637.3,3.0]
[1724031576843,3.79091,2637.9,2637.3,3.0]
[1724031577356,3.79105,2637.8,2637.1,3.0]
[1724031578354,0.6539157,2638.0,2637.3,3.79164]
[1724031578656,2.748547,2638.1,2637.3,3.79164]
[1724031578959,6.539257,2638.1,2637.3,3.79164]
[1724031579324,3.79079,2638.0,2637.3,3.79164]
[1724031579508,3.7909,2637.9,2637.1,6.79203]
[1724031579858,3.79106,2637.8,2637.1,3.0]
[1724031580018,3.7912,2637.7,2637.0,6.79216]
[1724031580223,3.7912,2637.7,2637.0,3.0]
[1724031580224,3.79132,2637.6,2637.0,3.0]
[1724031580419,4.170286,2637.7,2636.7,4.17316]
[1724031580612,3.79163,2637.4,2636.7,0.3806]
[1724031580822,3.7919,2637.2,2636.5,3.79289]
[1724031581053,3.7919,2637.2,2636.3,3.79313]
[1724031581054,3.79223,2637.0,2636.3,3.79313]
[1724031581255,3.78869,2639.5,2636.9,5.173]
[1724031581455,6.20231,2640.1,2636.9,5.173]
[1724031581456,2.4145,2640.1,2638.3,3.79022]
[1724031581639,3.7887,2639.5,2638.7,3.78966]
[1724031581840,3.78845,2639.6,2638.8,3.78955]
[1724031582355,3.78846,2639.6,2638.7,3.78974]
[1724031582560,3.78873,2639.5,2638.7,3.78974]
[1724031582722,3.78873,2639.5,2638.5,6.78998]
[1724031582723,3.78899,2639.3,2638.5,6.78998]
[1724031582917,3.78899,2639.3,2638.6,3.0]
[1724031583112,3.78907,2639.2,2638.6,3.0]
[1724031583359,0.757806,2639.1,2638.6,3.0]
[1724031583657,3.78985,2638.7,2638.1,3.0]
[1724031583952,0.378985,2638.6,2637.9,3.79084]
[1724031584126,0.378985,2638.6,2638.0,3.79072]
[1724031584328,0.4606919,2640.3,2638.9,2.368]
[1724031584530,2.4475,2641.1,2639.4,3.78859]
[1724031584719,3.78718,2640.5,2639.6,3.78844]
[1724031584919,3.78718,2640.5,2639.5,3.78852]
[1724031584920,3.78751,2640.3,2639.5,3.78852]
[1724031585135,0.378751,2640.2,2639.3,3.7888]
[1724031585363,0.378751,2640.2,2638.4,0.64329133]
[1724031585364,2.4475,2640.7,2639.0,8.96218]
[1724031585559,3.78847,2639.6,2639.1,3.0]
[1724031585734,6.23566,2639.8,2639.1,3.0]
[1724031585943,0.623566,2639.7,2639.1,3.0]
[1724031586254,0.623566,2639.7,2639.1,6.78906]
[1724031586456,4.411876,2639.7,2639.1,3.0]
[1724031586837,4.411876,2639.7,2638.6,3.7898]
[1724031587188,3.78711,2640.6,2638.1,2.3402]
[1724031587189,2.3737,2640.8,2640.0,3.7878]
[1724031587322,3.9116501,2641.2,2639.5,2.3402]
[1724031587323,0.1254801,2641.2,2640.1,8.723]
[1724031587654,0.1254801,2641.2,2640.8,3.78671]
[1724031587863,0.1254801,2641.2,2640.5,3.78707]
[1724031587864,3.9117601,2641.2,2640.5,3.78707]
[1724031588031,0.1254801,2641.2,2640.4,3.78729]
[1724031588239,0.1254801,2641.2,2640.1,8.173]
[1724031588443,0.1254801,2641.2,2638.8,3.78952]
[1724031588444,3.78699,2640.7,2639.8,3.7881]
[1724031588642,6.16074,2640.6,2639.8,3.7881]
[1724031588943,0.994773,2640.5,2639.9,3.788]
[1724031589145,0.994773,2640.5,2639.9,3.783]
[1724031590032,3.9117001,2641.2,2640.4,5.173]
[1724031590033,0.1254801,2641.2,2640.4,5.173]
[1724031590359,0.1499,2642.5,2640.3,5.173]
[1724031590360,0.1499,2642.5,2642.1,7.56972]
[1724031590564,0.1499,2642.5,2642.1,12.74272]
[1724031590892,1.88355644,2643.2,2642.5,3.78425]
[1724031591179,0.7674572,2643.1,2642.3,0.0756709]
[1724031591479,0.1254801,2643.8,2641.7,38.7853]
[1724031591480,3.7833,2643.2,2642.5,5.173]
[1724031591637,0.37833,2643.1,2642.5,5.173]
[1724031592147,3.78337,2643.2,2642.5,5.24866116]
[1724031592354,0.1254801,2643.8,2642.5,5.173]
[1724031592560,3.78311,2643.4,2642.6,3.0]
[1724031592893,3.78347,2643.1,2642.6,3.0]
[1724031593097,3.78347,2643.1,2641.6,3.78544]
[1724031593098,3.78389,2642.8,2642.0,6.78499]
[1724031593239,0.378389,2642.7,2641.7,3.0]
[1724031593442,3.78456,2642.4,2641.6,6.78556]
[1724031593980,3.78456,2642.4,2641.6,3.0]
[1724031594295,3.78456,2642.4,2640.9,3.78649]
[1724031594296,3.7857,2641.6,2640.7,3.78685]
[1724031594542,5.602,2643.4,2640.3,3.78731]
[1724031594543,0.23737,2642.6,2641.6,3.78558]
[1724031594664,0.69577701,2643.7,2641.9,3.78507]
[1724031594867,3.78316,2643.3,2642.5,3.78418]
[1724031595063,0.378316,2643.2,2642.6,3.7841]
[1724031595263,0.378316,2643.2,2642.5,3.78418]
[1724031595468,0.378316,2643.2,2642.3,3.78456]
[1724031595670,0.378316,2643.2,2642.1,3.78484]
[1724031595671,3.78375,2642.9,2642.2,3.78472]
[1724031595890,3.78394,2642.8,2642.1,3.0]
[1724031596187,3.78394,2642.8,2641.7,3.78542]
[1724031596188,0.378375,2642.8,2641.7,3.78542]
[1724031596387,0.378375,2642.8,2641.8,3.0]
[1724031596705,3.78442,2642.5,2641.6,3.0]
[1724031597016,0.1254801,2643.8,2643.0,3.78354]
[1724031597298,0.1254801,2643.8,2643.3,3.78303]
[1724031597507,0.1254801,2643.8,2643.4,3.78297]
[1724031597678,0.1254801,2643.8,2642.3,2.2994]
[1724031597855,3.78259,2643.7,2642.8,3.78375]
[1724031598050,0.39080701,2643.6,2642.9,3.0]
[1724031598257,2.5679801,2643.8,2642.7,3.0]
[1724031598552,0.25679801,2643.7,2642.7,3.0]
[1724031598786,3.78301,2643.4,2642.7,6.78394]
[1724031598990,3.78301,2643.4,2642.7,3.0]
[1724031599195,3.78301,2643.4,2642.7,6.784]
[1724031599364,3.78273,2643.6,2642.7,6.784]
[1724031599365,0.25679801,2643.7,2643.0,3.78347]
[1724031599586,0.25679801,2643.7,2642.8,3.78385]
[1724031599900,3.78301,2643.4,2642.9,3.0]
[1724031600211,3.78301,2643.4,2642.5,0.55]
[1724031600212,0.378301,2643.3,2642.5,0.55]
[1724031600365,3.78343,2643.1,2642.4,3.7844]
[1724031600726,2.2966,2643.0,2641.8,3.78524]
[1724031600874,3.78417,2642.6,2641.8,3.78524]
[1724031601067,3.78387,2642.8,2641.8,3.78524]
[1724031601270,3.78429,2642.5,2641.8,3.86092214]
[1724031601484,3.78429,2642.5,2641.8,3.78524]
[1724031601799,3.78429,2642.5,2641.6,4.16613]
[1724031601800,3.78473,2642.2,2641.6,3.78553]
[1724031601999,0.378399,2642.7,2641.7,3.78538]
[1724031602000,4.162869,2642.4,2641.7,3.78538]
[1724031602331,3.0,2643.6,2640.6,3.78691]
[1724031602332,3.78315,2643.3,2642.5,3.78418]
[1724031602473,4.161465,2643.3,2642.6,3.78412]
[1724031602874,0.378315,2643.3,2642.7,3.78397]
[1724031603345,0.378315,2643.3,2642.6,3.78412]
[1724031603489,3.78337,2643.2,2642.3,6.78456]
[1724031603664,3.78337,2643.2,2642.4,3.78431]
[1724031603868,3.78337,2643.2,2642.3,3.0]
[1724031603869,3.78317,2643.3,2642.3,3.0]
[1724031604091,0.378337,2643.1,2642.1,6.78474]
[1724031604289,3.78374,2642.9,2642.1,6.78474]
[1724031604502,0.1254801,2643.8,2642.1,3.0]
[1724031604503,0.378374,2642.8,2642.1,3.0]
[1724031604705,2.3412,2643.0,2641.9,3.78512]
[1724031604930,3.7843,2642.5,2641.5,3.78567]
[1724031605233,3.7846,2642.3,2641.6,3.78558]
[1724031605373,4.54149,2642.3,2641.6,3.78558]
[1724031605568,3.78478,2642.2,2641.5,3.78572]
[1724031605803,4.54149,2642.3,2641.5,3.78562]
[1724031606007,0.454149,2642.2,2641.6,3.78557]
[1724031606332,3.78513,2642.0,2641.3,3.786]
[1724031606472,4.2090579,2642.0,2641.3,3.786]
[1724031606672,4.2090579,2642.0,2640.7,9.38885]
[1724031606673,3.78531,2641.8,2640.9,3.7865]
[1724031606877,3.78591,2641.4,2640.7,3.78684]
[1724031607100,3.78591,2641.4,2640.5,3.78706]
[1724031607445,3.78617,2641.2,2640.5,3.78706]
[1724031607765,4.543378,2641.2,2640.3,3.78738]
[1724031607940,3.78617,2641.2,2640.5,3.78715]
[1724031608257,3.78646,2641.0,2640.3,3.78738]
[1724031608407,4.543739,2641.0,2640.3,3.78738]
[1724031608609,3.78659,2640.9,2640.2,3.78758]
[1724031608831,3.78677,2640.8,2640.1,3.78769]
[1724031609042,4.6196099,2640.9,2640.2,3.78757]
[1724031609252,3.78659,2640.9,2640.1,3.78769]
[1724031609849,2.3156,2641.3,2639.5,2.3824]
[1724031609850,3.78719,2640.5,2639.5,2.3824]
[1724031610152,3.78731,2640.4,2639.7,3.78821]
[1724031610303,3.78731,2640.4,2639.1,3.78914]
[1724031610304,3.78759,2640.2,2639.0,6.91393117]
[1724031610506,3.78771,2640.2,2639.5,3.78849]
[1724031610902,4.620957,2640.2,2639.5,3.78847]
[1724031611022,3.78771,2640.2,2639.6,3.78843]
[1724031611355,4.54479,2640.4,2639.5,3.78847]
[1724031611556,3.7877,2640.2,2639.5,3.78847]
[1724031612058,2.3897,2640.5,2639.9,3.78801]
[1724031612284,2.3897,2640.5,2639.8,3.78807]
[1724031612477,3.007382,2640.5,2639.8,3.78807]
[1724031612610,3.007382,2640.5,2639.8,7.57612]
[1724031612936,3.007382,2640.5,2639.9,3.78797]
[1724031613149,3.78734,2640.4,2639.8,3.78805]
[1724031613453,4.8455242,2640.4,2639.6,3.78835]
[1724031613758,3.78761,2640.2,2639.4,3.78863]
[1724031613970,3.78761,2640.2,2639.5,3.0]
[1724031614265,3.78761,2640.2,2639.5,6.78857]
[1724031615127,3.78784,2640.1,2639.5,3.0]
[1724031615307,3.78784,2640.1,2639.3,3.78879]
[1724031615308,4.62391406,2640.1,2639.4,3.0]
[1724031615813,3.78788,2640.0,2639.4,3.78873]
[1724031616125,2.3322,2639.9,2639.3,3.78876]
[1724031616960,3.78816,2639.8,2639.1,3.78911]
[1724031617129,2.3322,2639.9,2639.2,3.78898]
[1724031617324,6.12025,2639.9,2639.2,3.78898]
[1724031617748,3.78817,2639.8,2639.1,3.78911]
[1724031617918,3.78831,2639.7,2639.0,3.78921]
[1724031618112,3.78845,2639.6,2638.9,7.57868]
[1724031618450,3.78845,2639.6,2639.0,3.78928]
[1724031618615,3.78817,2639.8,2639.1,3.78913]
[1724031618807,3.78817,2639.8,2639.1,7.57818]
[1724031619011,3.78817,2639.8,2639.1,7.5781]
[1724031619248,3.78817,2639.8,2639.1,7.57811]
[1724031619443,3.78817,2639.8,2639.1,3.78905]
[1724031619714,3.78846,2639.6,2638.9,3.78934]
[1724031619918,3.7886,2639.5,2638.7,10.57934]
[1724031620138,3.7886,2639.5,2638.7,6.78965]
[1724031620325,3.78875,2639.4,2638.8,3.78956]
[1724031620527,3.78875,2639.4,2638.9,3.0]
[1724031621233,7.57703,2639.6,2638.9,6.78944]
[1724031621438,0.41800731,2639.8,2638.9,6.78944]
[1724031621675,4.20623731,2639.8,2638.9,6.78944]
[1724031622563,3.78864,2639.5,2638.9,6.78944]
[1724031622965,3.78855,2639.6,2638.9,6.78944]
[1724031624373,3.78869,2639.5,2638.9,6.78944]
[1724031624719,3.78875,2639.4,2638.7,3.78965]
[1724031625320,3.78889,2639.3,2638.7,3.78965]
[1724031625642,0.41800731,2639.8,2638.8,3.78952]
[1724031625643,3.78871,2639.5,2638.8,3.78952]
[1724031626769,3.78852,2639.6,2638.9,3.78933]
[1724031627737,7.57709,2639.6,2638.9,3.78933]
[1724031628370,3.78874,2639.4,2638.7,7.57931]
[1724031628534,3.78889,2639.3,2638.7,3.78964]
[1724031628737,7.5776,2639.4,2638.6,3.0]
[1724031628929,3.78893,2639.3,2638.7,3.78973]
[1724031629567,3.78902,2639.2,2638.7,3.78973]
[1724031629773,3.78902,2639.2,2638.5,3.78994]
[1724031629774,10.03135,2639.2,2638.5,3.78994]
[1724031630088,6.24222,2639.2,2638.5,3.78993]
[1724031630385,2.4532,2639.2,2638.5,3.78993]
[1724031630595,2.4532,2639.2,2638.7,3.78965]
[1724031631241,6.24227,2639.2,2638.6,3.0]
[1724031631994,6.24227,2639.2,2638.7,0.05]
[1724031632478,1.66219942,2639.2,2638.7,3.83973]
[1724031632664,0.05881188,2639.1,2639.0,3.78931]
[1724031632976,3.78853,2639.6,2639.0,3.78931]
[1724031633189,0.05852088,2639.1,2639.0,3.78931]
[1724031633350,3.78774,2640.1,2638.9,0.07577921]
[1724031633568,3.84513352,2640.0,2639.5,3.78851]
[1724031633767,0.05723352,2640.0,2639.3,3.78876]
[1724031633965,3.78825,2639.8,2639.1,7.57812]
[1724031634168,3.78832,2639.7,2639.1,3.78904]
[1724031634396,3.84359744,2639.7,2638.9,6.78933]
[1724031634566,3.78854,2639.6,2638.9,10.5787]
[1724031634806,3.7886,2639.5,2638.9,6.78933]
[1724031635178,0.05502744,2639.4,2638.9,6.78933]
[1724031635386,0.05502744,2639.4,2638.9,3.0]
[1724031635387,2.2778,2639.3,2638.9,3.0]
[1724031635564,2.2778,2639.3,2638.7,3.83966]
[1724031635565,3.78905,2639.2,2638.8,3.0]
[1724031635770,3.78905,2639.2,2638.7,3.83966]
[1724031635972,6.1217097,2639.3,2638.7,0.05]
[1724031635973,3.84392285,2639.1,2638.7,0.05]
[1724031636758,0.05475285,2639.1,2638.7,0.05]
[1724031636968,6.67894097,2639.3,2638.7,3.83973]
[1724031637224,0.05466509,2639.0,2638.7,3.83973]
[1724031637402,6.67894097,2639.3,2638.7,3.83973]
[1724031637604,0.05457732,2638.9,2638.7,3.83973]
[1724031637785,2.2778,2639.3,2638.8,3.7896]
[1724031638308,2.2778,2639.7,2638.7,0.05]
[1724031638604,2.2778,2639.7,2639.2,3.78892]
[1724031639305,2.2778,2639.7,2639.3,7.57756]
[1724031639778,0.05503255,2639.6,2639.3,7.57756]
[1724031639977,0.05503255,2639.6,2639.3,3.78877]
[1724031640869,0.05503255,2639.6,2639.3,7.57754]
[1724031641097,0.05503255,2639.6,2639.3,3.78877]
[1724031643591,0.05503255,2639.6,2639.1,3.7891]
[1724031643794,0.05503255,2639.6,2638.9,3.7894]
[1724031643795,3.84350255,2639.6,2638.9,7.57873]
[1724031644089,3.7886,2639.5,2639.0,0.83507886]
[1724031644319,3.7886,2639.5,2638.9,3.78933]
[1724031644507,0.05494839,2639.4,2639.0,0.83515048]
[1724031644752,0.05494839,2639.4,2638.9,3.78933]
[1724031644922,0.62173858,2639.6,2639.0,0.83512436]
[1724031645109,0.05482111,2639.3,2638.9,3.78933]
[1724031645294,3.78857,2639.6,2639.0,0.83510854]
[1724031645497,0.05473335,2639.2,2639.1,0.83510854]
[1724031645993,3.78862,2639.5,2639.1,0.83510854]
[1724031646198,3.78875,2639.4,2638.8,1.32673077]
[1724031646398,3.84365069,2639.4,2638.9,0.83510877]
[1724031646620,3.84365069,2639.4,2639.0,0.83510877]
[1724031646930,3.84365069,2639.4,2639.1,0.83510877]
[1724031647139,3.84365069,2639.4,2638.8,3.78951]
[1724031647312,3.78892,2639.3,2638.9,0.83510422]
[1724031647507,4.55216407,2639.3,2639.0,0.83510422]
[1724031647834,4.55216407,2639.3,2638.7,0.05]
[1724031647835,2.4043,2639.1,2638.7,3.83966]
[1724031648032,2.4043,2639.1,2638.8,0.83518641]
[1724031648237,0.05478465,2639.0,2638.9,0.83518641]
[1724031651099,0.05478465,2639.0,2638.9,0.8351715]
[1724031651717,0.05478465,2639.0,2638.7,0.05]
[1724031651934,0.05478465,2639.0,2638.8,0.83516985]
[1724031652263,0.05478465,2639.0,2638.7,0.05]
[1724031652264,10.0676,2638.8,2638.7,0.05]
[1724031652453,13.8572,2638.8,2638.7,0.05]
[1724031652737,13.91156577,2638.8,2638.7,0.05]
[1724031655416,17.70116577,2638.8,2638.7,0.05]
[1724031657044,13.91156577,2638.8,2638.7,0.05]
[1724031657250,15.30477668,2638.8,2638.7,0.05]
[1724031660341,3.84396577,2638.8,2638.7,0.05]
[1724031660555,0.05436577,2638.8,2638.7,0.05]
[1724031660862,3.78938,2639.0,2638.7,0.05]
[1724031661029,0.04867746,2638.8,2638.7,0.05]
[1724031661233,3.78938,2639.0,2638.7,0.05]
[1724031661433,0.04867746,2638.8,2638.7,0.05]
[1724031661855,3.78938,2639.0,2638.7,0.05]
[1724031662042,0.04885544,2638.8,2638.7,0.05]
[1724031662273,3.78918,2639.1,2638.7,0.05]
[1724031662437,0.04889498,2638.8,2638.7,0.05]
[1724031662640,7.57822,2639.2,2638.7,0.05]
[1724031662870,0.0485391,2638.8,2638.7,0.05]
[1724031663172,3.7891,2639.2,2638.7,0.05]
[1724031663371,0.04877635,2638.8,2638.7,0.05]
[1724031663581,3.7891,2639.2,2638.7,0.05]
[1724031663814,2.33544037,2639.6,2638.7,3.83974]
[1724031663815,3.78881,2639.4,2638.7,3.83974]
[1724031664157,0.04868382,2639.1,2638.7,3.83974]
[1724031664355,7.57764,2639.4,2638.7,3.83974]
[1724031664569,0.0487542,2639.0,2638.7,3.83974]
[1724031664886,7.57764,2639.4,2638.7,0.05]
[1724031664887,0.04866643,2638.9,2638.7,0.05]
[1724031665058,3.78903,2639.2,2638.7,0.05]
[1724031665385,0.04857865,2638.8,2638.7,0.05]
[1724031665584,3.78903,2639.2,2638.7,0.05]
[1724031665757,0.04857865,2638.8,2638.7,0.05]